[Event "Titled Tuesday Blitz July 4 Late 2023"]
[White "Carrasco Miranda, Andres"]
[Black "reevecanada"]
[WhiteFideId "3405990"]
[WhiteElo "2404"]
[BlackElo "2539"]
[Result "1-0"]
[Round "8"]
[TimeControl "180+2"]
[Date "2023.07.04"]
[WhiteClock "0:01:24"]
[BlackClock "0:01:39"]
[Board "86"]

1. d4 {[%clk 0:02:57]}  d5 {[%clk 0:02:57]} 2. c4 {[%clk 0:02:57]}  Nf6 {[%clk 0:02:55]} 3. cxd5 {[%clk 0:02:56]}  Nxd5 {[%clk 0:02:53]} 4. e4 {[%clk 0:02:56]}  Nb6 {[%clk 0:02:52]} 5. Nc3 {[%clk 0:02:55]}  g6 {[%clk 0:02:46]} 6. h4 {[%clk 0:02:53]}  h5 {[%clk 0:02:45]} 7. Bb5+ {[%clk 0:02:50]}  c6 {[%clk 0:02:44]} 8. Be2 {[%clk 0:02:50]}  Bg7 {[%clk 0:02:45]} 9. Nf3 {[%clk 0:02:49]}  Bg4 {[%clk 0:02:43]} 10. Be3 {[%clk 0:02:48]}  O-O {[%clk 0:02:44]} 11. Qd2 {[%clk 0:02:43]}  Be6 {[%clk 0:02:39]} 12. Bh6 {[%clk 0:02:41]}  Nc4 {[%clk 0:02:35]} 13. Bxc4 {[%clk 0:02:37]}  Bxc4 {[%clk 0:02:34]} 14. Bxg7 {[%clk 0:02:38]}  Kxg7 {[%clk 0:02:30]} 15. d5 {[%clk 0:02:38]}  cxd5 {[%clk 0:02:28]} 16. exd5 {[%clk 0:02:39]}  Ba6 {[%clk 0:02:24]} 17. Qd4+ {[%clk 0:02:35]}  e5 {[%clk 0:02:15]} 18. Nxe5 {[%clk 0:02:32]}  f6 {[%clk 0:02:13]} 19. Nf3 {[%clk 0:02:19]}  Re8+ {[%clk 0:02:11]} 20. Kd1 {[%clk 0:02:02]}  Qa5 {[%clk 0:02:10]} 21. Re1 {[%clk 0:01:55]}  Nc6 {[%clk 0:02:05]} 22. dxc6 {[%clk 0:01:37]}  Red8 {[%clk 0:02:01]} 23. Re7+ {[%clk 0:01:34]}  Kf8 {[%clk 0:01:55]} 24. Rd7 {[%clk 0:01:34]}  Rxd7 {[%clk 0:01:42]} 25. cxd7 {[%clk 0:01:35]}  Qf5 {[%clk 0:01:39]} 26. d8=Q+ {[%clk 0:01:24]} 1-0


[Site "https://www.chess.com"]

[Event "Titled Tuesday Blitz July 4 Late 2023"]
[White "Estrada Nieto, Julian"]
[Black "Urbina Perez, Juan Antonio"]
[WhiteFideId "5101018"]
[BlackFideId "2217368"]
[WhiteElo "2537"]
[BlackElo "2400"]
[Result "0-1"]
[Round "8"]
[TimeControl "180+2"]
[Date "2023.07.04"]
[WhiteClock "0:00:00"]
[BlackClock "0:01:16"]
[Board "87"]

1. e4 {[%clk 0:03:00]}  e5 {[%clk 0:02:56]} 2. Nf3 {[%clk 0:03:01]}  Nc6 {[%clk 0:02:57]} 3. Bb5 {[%clk 0:03:01]}  a6 {[%clk 0:02:57]} 4. Ba4 {[%clk 0:03:02]}  Nge7 {[%clk 0:02:57]} 5. Nc3 {[%clk 0:03:01]}  g6 {[%clk 0:02:57]} 6. d4 {[%clk 0:02:58]}  exd4 {[%clk 0:02:58]} 7. Nd5 {[%clk 0:02:58]}  Bg7 {[%clk 0:02:57]} 8. Bg5 {[%clk 0:02:58]}  h6 {[%clk 0:02:45]} 9. Bf6 {[%clk 0:02:58]}  Bxf6 {[%clk 0:02:33]} 10. Nxf6+ {[%clk 0:02:58]}  Kf8 {[%clk 0:02:33]} 11. Nxd4 {[%clk 0:02:50]}  Kg7 {[%clk 0:02:29]} 12. Nd5 {[%clk 0:02:48]}  Nxd5 {[%clk 0:02:24]} 13. exd5 {[%clk 0:02:47]}  Nxd4 {[%clk 0:02:17]} 14. Qxd4+ {[%clk 0:02:47]}  Qf6 {[%clk 0:02:18]} 15. Qxf6+ {[%clk 0:02:38]}  Kxf6 {[%clk 0:02:19]} 16. d6 {[%clk 0:02:38]}  b5 {[%clk 0:02:18]} 17. Bb3 {[%clk 0:02:38]}  Re8+ {[%clk 0:02:19]} 18. Kd2 {[%clk 0:02:34]}  Bb7 {[%clk 0:02:13]} 19. f3 {[%clk 0:02:19]}  c5 {[%clk 0:02:11]} 20. c4 {[%clk 0:02:14]}  b4 {[%clk 0:02:10]} 21. Rhe1 {[%clk 0:01:58]}  Bc6 {[%clk 0:01:54]} 22. a3 {[%clk 0:01:51]}  a5 {[%clk 0:01:49]} 23. axb4 {[%clk 0:01:51]}  axb4 {[%clk 0:01:50]} 24. Rxa8 {[%clk 0:01:14]}  Rxe1 {[%clk 0:01:45]} 25. Ra5 {[%clk 0:00:49]}  Rg1 {[%clk 0:01:43]} 26. Rxc5 {[%clk 0:00:43]}  Rxg2+ {[%clk 0:01:43]} 27. Kc1 {[%clk 0:00:43]}  Rg1+ {[%clk 0:01:40]} 28. Kd2 {[%clk 0:00:43]}  Rg2+ {[%clk 0:01:40]} 29. Kc1 {[%clk 0:00:43]}  Rxh2 {[%clk 0:01:41]} 30. f4 {[%clk 0:00:32]}  h5 {[%clk 0:01:40]} 31. Bd1 {[%clk 0:00:28]}  h4 {[%clk 0:01:38]} 32. Bg4 {[%clk 0:00:25]}  h3 {[%clk 0:01:36]} 33. Re5 {[%clk 0:00:17]}  Rh1+ {[%clk 0:01:36]} 34. Kd2 {[%clk 0:00:17]}  h2 {[%clk 0:01:35]} 35. Re2 {[%clk 0:00:13]}  Rd1+ {[%clk 0:01:28]} 36. Kxd1 {[%clk 0:00:13]}  h1=Q+ {[%clk 0:01:28]} 37. Kd2 {[%clk 0:00:14]}  Qb1 {[%clk 0:01:22]} 38. Ke3 {[%clk 0:00:12]}  Qe4+ {[%clk 0:01:21]} 39. Kd2 {[%clk 0:00:00]}  Qxc4 {[%clk 0:01:16]} 0-1


[Site "https://www.chess.com"]

[Event "Titled Tuesday Blitz July 4 Late 2023"]
[White "Fiol, Fabrice"]
[Black "Duarte, Leonardo"]
[WhiteFideId "611670"]
[BlackFideId "110582"]
[WhiteElo "2532"]
[BlackElo "2391"]
[Result "0-1"]
[Round "8"]
[TimeControl "180+2"]
[Date "2023.07.04"]
[WhiteClock "0:00:00"]
[BlackClock "0:00:04"]
[Board "88"]

1. e4 {[%clk 0:03:00]}  e5 {[%clk 0:02:36]} 2. Nf3 {[%clk 0:03:00]}  Nc6 {[%clk 0:02:33]} 3. Bc4 {[%clk 0:02:57]}  Bc5 {[%clk 0:02:30]} 4. d3 {[%clk 0:02:57]}  Nf6 {[%clk 0:02:24]} 5. c3 {[%clk 0:02:57]}  a5 {[%clk 0:02:19]} 6. Bb3 {[%clk 0:02:57]}  d6 {[%clk 0:02:15]} 7. Nbd2 {[%clk 0:02:56]}  O-O {[%clk 0:02:13]} 8. h3 {[%clk 0:02:56]}  Ne7 {[%clk 0:01:54]} 9. Nf1 {[%clk 0:02:48]}  Ng6 {[%clk 0:01:50]} 10. Ng3 {[%clk 0:02:48]}  d5 {[%clk 0:01:51]} 11. exd5 {[%clk 0:02:46]}  Nxd5 {[%clk 0:01:50]} 12. O-O {[%clk 0:02:44]}  Ndf4 {[%clk 0:01:46]} 13. d4 {[%clk 0:02:41]}  exd4 {[%clk 0:01:46]} 14. cxd4 {[%clk 0:02:38]}  Bb6 {[%clk 0:01:43]} 15. Kh2 {[%clk 0:02:33]}  Qf6 {[%clk 0:01:40]} 16. Ne4 {[%clk 0:02:05]}  Qd8 {[%clk 0:01:27]} 17. Be3 {[%clk 0:01:55]}  Bf5 {[%clk 0:01:24]} 18. Ng3 {[%clk 0:01:40]}  Qd7 {[%clk 0:01:08]} 19. Ne5 {[%clk 0:01:33]}  Nxe5 {[%clk 0:00:55]} 20. dxe5 {[%clk 0:01:14]}  Ng6 {[%clk 0:00:50]} 21. Qh5 {[%clk 0:00:53]}  Bxe3 {[%clk 0:00:40]} 22. Nxf5 {[%clk 0:00:39]}  Bf4+ {[%clk 0:00:28]} 23. g3 {[%clk 0:00:35]}  Bxe5 {[%clk 0:00:29]} 24. Rad1 {[%clk 0:00:34]}  Qb5 {[%clk 0:00:22]} 25. Kg2 {[%clk 0:00:17]}  Rad8 {[%clk 0:00:20]} 26. Rxd8 {[%clk 0:00:14]}  Rxd8 {[%clk 0:00:19]} 27. Qg5 {[%clk 0:00:12]}  Qc6+ {[%clk 0:00:17]} 28. Kh2 {[%clk 0:00:11]}  Re8 {[%clk 0:00:17]} 29. h4 {[%clk 0:00:09]}  Bf6 {[%clk 0:00:16]} 30. Qg4 {[%clk 0:00:09]}  Ne5 {[%clk 0:00:15]} 31. Bxf7+ {[%clk 0:00:04]}  Nxf7 {[%clk 0:00:11]} 32. Kh3 {[%clk 0:00:03]}  Ne5 {[%clk 0:00:11]} 33. Qh5 {[%clk 0:00:02]}  Rf8 {[%clk 0:00:10]} 34. f4 {[%clk 0:00:02]}  Ng6 {[%clk 0:00:07]} 35. Qg4 {[%clk 0:00:02]}  Ne7 {[%clk 0:00:05]} 36. Ne3 {[%clk 0:00:01]}  Nd5 {[%clk 0:00:05]} 37. Nf5 {[%clk 0:00:00]}  Ne7 {[%clk 0:00:04]} 0-1


[Site "https://www.chess.com"]

[Event "Titled Tuesday Blitz July 4 Late 2023"]
[White "Prem, Pranav"]
[Black "financieru"]
[WhiteFideId "30901057"]
[WhiteElo "2528"]
[BlackElo "2388"]
[Result "1-0"]
[Round "8"]
[TimeControl "180+2"]
[Date "2023.07.04"]
[WhiteClock "0:00:55"]
[BlackClock "0:00:57"]
[Board "89"]

1. d4 {[%clk 0:03:00]}  Nf6 {[%clk 0:02:59]} 2. c4 {[%clk 0:02:57]}  g6 {[%clk 0:03:00]} 3. Nc3 {[%clk 0:02:56]}  Bg7 {[%clk 0:03:00]} 4. e4 {[%clk 0:02:56]}  d6 {[%clk 0:03:01]} 5. Nf3 {[%clk 0:02:56]}  O-O {[%clk 0:03:02]} 6. Be2 {[%clk 0:02:57]}  e5 {[%clk 0:03:03]} 7. O-O {[%clk 0:02:55]}  Nbd7 {[%clk 0:03:03]} 8. Qc2 {[%clk 0:02:54]}  c6 {[%clk 0:03:03]} 9. d5 {[%clk 0:02:54]}  c5 {[%clk 0:03:02]} 10. a3 {[%clk 0:02:41]}  b6 {[%clk 0:02:52]} 11. b4 {[%clk 0:02:39]}  Ng4 {[%clk 0:02:42]} 12. Bg5 {[%clk 0:02:29]}  f6 {[%clk 0:02:42]} 13. Bd2 {[%clk 0:02:27]}  f5 {[%clk 0:02:38]} 14. Ng5 {[%clk 0:02:13]}  Bf6 {[%clk 0:02:27]} 15. Ne6 {[%clk 0:02:13]}  Qe7 {[%clk 0:02:27]} 16. Nxf8 {[%clk 0:02:01]}  Nxf8 {[%clk 0:02:25]} 17. f3 {[%clk 0:02:01]}  Nxh2 {[%clk 0:02:11]} 18. Kxh2 {[%clk 0:02:02]}  f4 {[%clk 0:02:11]} 19. Be1 {[%clk 0:01:53]}  Bh4 {[%clk 0:02:08]} 20. Bxh4 {[%clk 0:01:43]}  Qxh4+ {[%clk 0:02:08]} 21. Kg1 {[%clk 0:01:43]}  g5 {[%clk 0:02:03]} 22. Qd1 {[%clk 0:01:39]}  g4 {[%clk 0:01:53]} 23. fxg4 {[%clk 0:01:38]}  Ng6 {[%clk 0:01:53]} 24. Qe1 {[%clk 0:01:30]}  Qg5 {[%clk 0:01:53]} 25. bxc5 {[%clk 0:01:28]}  bxc5 {[%clk 0:01:52]} 26. Rb1 {[%clk 0:01:23]}  Kh8 {[%clk 0:01:52]} 27. Nb5 {[%clk 0:01:18]}  Bxg4 {[%clk 0:01:41]} 28. Bxg4 {[%clk 0:01:10]}  Qxg4 {[%clk 0:01:42]} 29. Nxd6 {[%clk 0:01:04]}  Nh4 {[%clk 0:01:33]} 30. Qf2 {[%clk 0:01:03]}  Rg8 {[%clk 0:01:27]} 31. Nf7+ {[%clk 0:01:01]}  Kg7 {[%clk 0:01:27]} 32. Nxe5 {[%clk 0:01:02]}  Qh5 {[%clk 0:00:57]} 33. Qxf4 {[%clk 0:00:55]} 1-0


[Site "https://www.chess.com"]

[Event "Titled Tuesday Blitz July 4 Late 2023"]
[White "Bochnicka, Vladimir"]
[Black "Kirillov, Dmitry"]
[WhiteFideId "14943450"]
[BlackFideId "34180572"]
[WhiteElo "2385"]
[BlackElo "2526"]
[Result "1-0"]
[Round "8"]
[TimeControl "180+2"]
[Date "2023.07.04"]
[WhiteClock "0:00:18"]
[BlackClock "0:00:04"]
[Board "90"]

1. e4 {[%clk 0:03:00]}  e5 {[%clk 0:02:55]} 2. Nf3 {[%clk 0:03:01]}  Nc6 {[%clk 0:02:54]} 3. Bc4 {[%clk 0:03:01]}  Nf6 {[%clk 0:02:52]} 4. d3 {[%clk 0:03:01]}  Bc5 {[%clk 0:02:52]} 5. c3 {[%clk 0:03:01]}  d6 {[%clk 0:02:52]} 6. Nbd2 {[%clk 0:03:02]}  a6 {[%clk 0:02:53]} 7. Bb3 {[%clk 0:03:01]}  Ba7 {[%clk 0:02:53]} 8. Nf1 {[%clk 0:03:02]}  h6 {[%clk 0:02:53]} 9. Ng3 {[%clk 0:03:02]}  g5 {[%clk 0:02:52]} 10. O-O {[%clk 0:03:02]}  Ne7 {[%clk 0:02:52]} 11. d4 {[%clk 0:03:00]}  Ng6 {[%clk 0:02:51]} 12. dxe5 {[%clk 0:02:58]}  Nxe5 {[%clk 0:02:35]} 13. Nxe5 {[%clk 0:02:58]}  dxe5 {[%clk 0:02:36]} 14. Qxd8+ {[%clk 0:02:58]}  Kxd8 {[%clk 0:02:36]} 15. Bxf7 {[%clk 0:02:59]}  Ke7 {[%clk 0:02:36]} 16. Bb3 {[%clk 0:02:59]}  Ng4 {[%clk 0:02:28]} 17. h3 {[%clk 0:02:55]}  Nxf2 {[%clk 0:02:27]} 18. Rxf2 {[%clk 0:02:55]}  Rf8 {[%clk 0:02:28]} 19. Nh1 {[%clk 0:02:55]}  g4 {[%clk 0:01:44]} 20. hxg4 {[%clk 0:02:53]}  Bxg4 {[%clk 0:01:45]} 21. Bxh6 {[%clk 0:02:52]}  Rh8 {[%clk 0:01:28]} 22. Bg5+ {[%clk 0:02:51]}  Kd6 {[%clk 0:01:28]} 23. Bd1 {[%clk 0:02:13]}  Be6 {[%clk 0:01:05]} 24. Ng3 {[%clk 0:02:02]}  Rhg8 {[%clk 0:00:50]} 25. Bh4 {[%clk 0:02:00]}  Raf8 {[%clk 0:00:48]} 26. Bf3 {[%clk 0:01:58]}  Rf4 {[%clk 0:00:34]} 27. Nf5+ {[%clk 0:01:50]}  Bxf5 {[%clk 0:00:30]} 28. Rd1+ {[%clk 0:01:50]}  Kc6 {[%clk 0:00:27]} 29. exf5+ {[%clk 0:01:50]}  e4 {[%clk 0:00:26]} 30. Bxe4+ {[%clk 0:00:48]}  Rxe4 {[%clk 0:00:24]} 31. Bf6 {[%clk 0:00:42]}  Bxf2+ {[%clk 0:00:19]} 32. Kxf2 {[%clk 0:00:43]}  Rf4+ {[%clk 0:00:19]} 33. Kg1 {[%clk 0:00:42]}  Rxf5 {[%clk 0:00:19]} 34. Bd4 {[%clk 0:00:42]}  Rd5 {[%clk 0:00:10]} 35. Re1 {[%clk 0:00:42]}  Kd7 {[%clk 0:00:10]} 36. Rf1 {[%clk 0:00:40]}  c5 {[%clk 0:00:10]} 37. Be3 {[%clk 0:00:37]}  Re5 {[%clk 0:00:10]} 38. Rf3 {[%clk 0:00:33]}  Rge8 {[%clk 0:00:09]} 39. Kf2 {[%clk 0:00:33]}  Kc6 {[%clk 0:00:09]} 40. g4 {[%clk 0:00:30]}  R8e6 {[%clk 0:00:09]} 41. g5 {[%clk 0:00:30]}  Rg6 {[%clk 0:00:08]} 42. Kg3 {[%clk 0:00:27]}  Rexg5+ {[%clk 0:00:07]} 43. Bxg5 {[%clk 0:00:27]}  Rxg5+ {[%clk 0:00:08]} 44. Kf2 {[%clk 0:00:28]}  Rd5 {[%clk 0:00:08]} 45. Ke2 {[%clk 0:00:28]}  Re5+ {[%clk 0:00:09]} 46. Kd2 {[%clk 0:00:28]}  Rh5 {[%clk 0:00:09]} 47. Kc2 {[%clk 0:00:28]}  Rh2+ {[%clk 0:00:09]} 48. Kb3 {[%clk 0:00:28]}  Kb5 {[%clk 0:00:09]} 49. a4+ {[%clk 0:00:27]}  Ka5 {[%clk 0:00:09]} 50. Rf5 {[%clk 0:00:18]}  b6 {[%clk 0:00:09]} 51. Ka3 {[%clk 0:00:18]}  Rh4 {[%clk 0:00:09]} 52. b4+ {[%clk 0:00:17]}  Rxb4 {[%clk 0:00:04]} 53. cxb4# {[%clk 0:00:18]} 1-0


[Site "https://www.chess.com"]

[Event "Titled Tuesday Blitz July 4 Late 2023"]
[White "Avila Rodriguez, Joshua Ad"]
[Black "Shapiro, Daniel"]
[WhiteFideId "5126444"]
[BlackFideId "2001780"]
[WhiteElo "2455"]
[BlackElo "2345"]
[Result "1-0"]
[Round "8"]
[TimeControl "180+2"]
[Date "2023.07.04"]
[WhiteClock "0:00:03"]
[BlackClock "0:00:00"]
[Board "100"]

1. d4 {[%clk 0:03:00]}  Nf6 {[%clk 0:02:56]} 2. c4 {[%clk 0:03:01]}  e6 {[%clk 0:02:55]} 3. Nc3 {[%clk 0:03:01]}  Bb4 {[%clk 0:02:54]} 4. e3 {[%clk 0:03:01]}  d5 {[%clk 0:02:53]} 5. Ne2 {[%clk 0:02:58]}  O-O {[%clk 0:02:52]} 6. a3 {[%clk 0:02:58]}  Bd6 {[%clk 0:02:44]} 7. Ng3 {[%clk 0:02:56]}  c6 {[%clk 0:02:42]} 8. Bd3 {[%clk 0:02:56]}  Nbd7 {[%clk 0:02:39]} 9. O-O {[%clk 0:02:55]}  b6 {[%clk 0:02:31]} 10. b4 {[%clk 0:02:52]}  Bb7 {[%clk 0:02:24]} 11. e4 {[%clk 0:02:44]}  dxc4 {[%clk 0:02:03]} 12. Bxc4 {[%clk 0:02:44]}  b5 {[%clk 0:01:57]} 13. Bd3 {[%clk 0:02:39]}  e5 {[%clk 0:01:54]} 14. Nf5 {[%clk 0:02:38]}  Bc7 {[%clk 0:01:52]} 15. Bg5 {[%clk 0:02:21]}  exd4 {[%clk 0:01:46]} 16. Nxd4 {[%clk 0:02:08]}  Ne5 {[%clk 0:01:43]} 17. Be2 {[%clk 0:02:08]}  h6 {[%clk 0:01:22]} 18. Bh4 {[%clk 0:02:02]}  Ng6 {[%clk 0:01:22]} 19. Bg3 {[%clk 0:02:02]}  Nf4 {[%clk 0:01:14]} 20. Nb3 {[%clk 0:01:51]}  Be5 {[%clk 0:01:08]} 21. Rc1 {[%clk 0:01:39]}  Qe7 {[%clk 0:00:58]} 22. Nc5 {[%clk 0:01:31]}  Bc8 {[%clk 0:00:58]} 23. Re1 {[%clk 0:01:22]}  a5 {[%clk 0:00:58]} 24. Qb3 {[%clk 0:00:54]}  axb4 {[%clk 0:00:53]} 25. axb4 {[%clk 0:00:54]}  Bg4 {[%clk 0:00:45]} 26. Bxg4 {[%clk 0:00:50]}  Nxg4 {[%clk 0:00:46]} 27. h3 {[%clk 0:00:44]}  Nf6 {[%clk 0:00:36]} 28. Ne2 {[%clk 0:00:38]}  N6h5 {[%clk 0:00:29]} 29. Nxf4 {[%clk 0:00:36]}  Bxf4 {[%clk 0:00:25]} 30. Bxf4 {[%clk 0:00:14]}  Nxf4 {[%clk 0:00:25]} 31. Qf3 {[%clk 0:00:15]}  Qg5 {[%clk 0:00:22]} 32. Rc3 {[%clk 0:00:07]}  Ra2 {[%clk 0:00:17]} 33. e5 {[%clk 0:00:06]}  Rb2 {[%clk 0:00:16]} 34. Ne4 {[%clk 0:00:06]}  Qf5 {[%clk 0:00:12]} 35. Ng3 {[%clk 0:00:05]}  Qg5 {[%clk 0:00:11]} 36. Qe4 {[%clk 0:00:02]}  h5 {[%clk 0:00:09]} 37. Rf3 {[%clk 0:00:02]}  Ne6 {[%clk 0:00:07]} 38. Rf5 {[%clk 0:00:03]}  Qg6 {[%clk 0:00:07]} 39. Rxh5 {[%clk 0:00:02]}  Rd8 {[%clk 0:00:05]} 40. Qxg6 {[%clk 0:00:01]}  fxg6 {[%clk 0:00:05]} 41. Rh4 {[%clk 0:00:01]}  Rdd2 {[%clk 0:00:04]} 42. Rg4 {[%clk 0:00:02]}  Rxf2 {[%clk 0:00:03]} 43. Ne4 {[%clk 0:00:03]}  Rf4 {[%clk 0:00:00]} 44. Rxg6 {[%clk 0:00:03]} 1-0


[Site "https://www.chess.com"]

[Event "Titled Tuesday Blitz July 4 Late 2023"]
[White "Bullen, Alex"]
[Black "Koc, Przemyslaw"]
[WhiteFideId "1801627"]
[BlackFideId "1109081"]
[WhiteElo "2295"]
[BlackElo "2454"]
[Result "1-0"]
[Round "8"]
[TimeControl "180+2"]
[Date "2023.07.04"]
[WhiteClock "0:00:29"]
[BlackClock "0:00:56"]
[Board "101"]

1. d4 {[%clk 0:03:00]}  d6 {[%clk 0:03:00]} 2. e4 {[%clk 0:03:00]}  Nf6 {[%clk 0:03:00]} 3. Nc3 {[%clk 0:02:59]}  e5 {[%clk 0:03:00]} 4. Nf3 {[%clk 0:02:59]}  Nbd7 {[%clk 0:03:00]} 5. Bc4 {[%clk 0:02:59]}  Be7 {[%clk 0:02:58]} 6. a4 {[%clk 0:03:00]}  c6 {[%clk 0:02:57]} 7. O-O {[%clk 0:03:00]}  h6 {[%clk 0:02:56]} 8. h3 {[%clk 0:03:00]}  a5 {[%clk 0:02:56]} 9. Re1 {[%clk 0:03:00]}  Qc7 {[%clk 0:02:56]} 10. Be3 {[%clk 0:03:01]}  Nf8 {[%clk 0:02:56]} 11. Qd2 {[%clk 0:03:01]}  g5 {[%clk 0:02:55]} 12. Rad1 {[%clk 0:02:58]}  Ng6 {[%clk 0:02:55]} 13. Nh2 {[%clk 0:02:50]}  Nf4 {[%clk 0:02:51]} 14. dxe5 {[%clk 0:02:33]}  dxe5 {[%clk 0:02:50]} 15. Nf1 {[%clk 0:02:23]}  O-O {[%clk 0:02:14]} 16. Ng3 {[%clk 0:02:21]}  Be6 {[%clk 0:02:13]} 17. Bxe6 {[%clk 0:02:18]}  fxe6 {[%clk 0:02:12]} 18. Bxf4 {[%clk 0:02:13]}  gxf4 {[%clk 0:02:08]} 19. Nf1 {[%clk 0:02:06]}  Kh7 {[%clk 0:02:08]} 20. f3 {[%clk 0:02:01]}  Rg8 {[%clk 0:02:07]} 21. Nh2 {[%clk 0:02:00]}  h5 {[%clk 0:02:06]} 22. Re2 {[%clk 0:01:48]}  Rg3 {[%clk 0:02:05]} 23. Nf1 {[%clk 0:01:46]}  Rg7 {[%clk 0:02:03]} 24. Qe1 {[%clk 0:01:37]}  Rag8 {[%clk 0:02:01]} 25. Rdd2 {[%clk 0:01:33]}  Kh6 {[%clk 0:01:58]} 26. Kh1 {[%clk 0:01:33]}  b5 {[%clk 0:01:42]} 27. axb5 {[%clk 0:01:30]}  cxb5 {[%clk 0:01:42]} 28. Nxb5 {[%clk 0:01:29]}  Qb6 {[%clk 0:01:36]} 29. c4 {[%clk 0:01:25]}  Bb4 {[%clk 0:01:36]} 30. Nc3 {[%clk 0:01:23]}  Qc5 {[%clk 0:01:33]} 31. Qf2 {[%clk 0:01:17]}  Qxc4 {[%clk 0:01:32]} 32. Rc2 {[%clk 0:01:10]}  Bc5 {[%clk 0:01:29]} 33. Qh4 {[%clk 0:01:07]}  Be7 {[%clk 0:01:25]} 34. Qe1 {[%clk 0:01:05]}  Qa6 {[%clk 0:01:23]} 35. Rf2 {[%clk 0:01:00]}  Nd7 {[%clk 0:01:16]} 36. Qe2 {[%clk 0:00:59]}  Qxe2 {[%clk 0:01:14]} 37. Rfxe2 {[%clk 0:01:00]}  Nc5 {[%clk 0:01:13]} 38. Nb5 {[%clk 0:00:55]}  Nb3 {[%clk 0:01:12]} 39. Rc7 {[%clk 0:00:53]}  Bb4 {[%clk 0:01:08]} 40. Rxg7 {[%clk 0:00:52]}  Rxg7 {[%clk 0:01:09]} 41. Rc2 {[%clk 0:00:48]}  Ra7 {[%clk 0:01:08]} 42. Nxa7 {[%clk 0:00:47]}  Nd4 {[%clk 0:01:04]} 43. Rc4 {[%clk 0:00:42]}  Kg5 {[%clk 0:01:03]} 44. Nc6 {[%clk 0:00:41]}  Kf6 {[%clk 0:01:03]} 45. Nxd4 {[%clk 0:00:40]}  exd4 {[%clk 0:01:02]} 46. Rxd4 {[%clk 0:00:40]}  Ke5 {[%clk 0:01:03]} 47. Rd8 {[%clk 0:00:38]}  Bc5 {[%clk 0:01:02]} 48. Nd2 {[%clk 0:00:37]}  Kf6 {[%clk 0:01:00]} 49. Rh8 {[%clk 0:00:35]}  Kg6 {[%clk 0:00:59]} 50. Rc8 {[%clk 0:00:35]}  Bd4 {[%clk 0:00:58]} 51. Nc4 {[%clk 0:00:34]}  e5 {[%clk 0:00:58]} 52. Nxa5 {[%clk 0:00:33]}  Bxb2 {[%clk 0:00:58]} 53. Rc6+ {[%clk 0:00:32]}  Kg5 {[%clk 0:00:58]} 54. Nc4 {[%clk 0:00:33]}  Kh4 {[%clk 0:00:58]} 55. Nxb2 {[%clk 0:00:32]}  Kg3 {[%clk 0:00:58]} 56. Re6 {[%clk 0:00:29]}  h4 {[%clk 0:00:57]} 57. Rxe5 {[%clk 0:00:29]}  Kf2 {[%clk 0:00:56]} 58. Rf5 {[%clk 0:00:29]} 1-0


[Site "https://www.chess.com"]

[Event "Titled Tuesday Blitz July 4 Late 2023"]
[White "Uzcategui Rodriguez, Alejandro"]
[Black "Zampronha, Wladimir Camilo"]
[WhiteFideId "3903400"]
[BlackFideId "2103087"]
[WhiteElo "2446"]
[BlackElo "2293"]
[Result "1-0"]
[Round "8"]
[TimeControl "180+2"]
[Date "2023.07.04"]
[WhiteClock "0:01:27"]
[BlackClock "0:01:56"]
[Board "102"]

1. d4 {[%clk 0:02:44]}  Nf6 {[%clk 0:02:58]} 2. Nf3 {[%clk 0:02:43]}  e6 {[%clk 0:02:59]} 3. Bg5 {[%clk 0:02:42]}  c5 {[%clk 0:02:59]} 4. e3 {[%clk 0:02:42]}  Qb6 {[%clk 0:02:56]} 5. Nbd2 {[%clk 0:02:42]}  d5 {[%clk 0:02:55]} 6. c4 {[%clk 0:02:40]}  cxd4 {[%clk 0:02:53]} 7. exd4 {[%clk 0:02:39]}  dxc4 {[%clk 0:02:50]} 8. Bxc4 {[%clk 0:02:39]}  Qxb2 {[%clk 0:02:45]} 9. Bxf6 {[%clk 0:02:25]}  gxf6 {[%clk 0:02:44]} 10. O-O {[%clk 0:02:24]}  Qa3 {[%clk 0:02:36]} 11. d5 {[%clk 0:02:22]}  e5 {[%clk 0:02:36]} 12. Ne4 {[%clk 0:02:22]}  Nd7 {[%clk 0:02:30]} 13. d6 {[%clk 0:01:52]}  b6 {[%clk 0:02:13]} 14. Qd5 {[%clk 0:01:47]}  Rb8 {[%clk 0:02:07]} 15. Qxf7+ {[%clk 0:01:46]}  Kd8 {[%clk 0:02:06]} 16. Nxf6 {[%clk 0:01:27]}  Bxd6 {[%clk 0:01:56]} 1-0


[Site "https://www.chess.com"]